bitfinex/quotes_SOLUSD_20241229
["timestamp","ask_amount","ask_price","bid_price","bid_amount"]
[1735507594964,20.67741332,192.3,192.16,20.0]
[1735507595173,20.67741332,192.3,192.17,1.5033]
[1735507595847,20.67741332,192.3,192.17,12.70295136]
[1735507596055,20.67741332,192.3,192.22,20.0]
[1735507596056,12.99921332,192.3,192.22,20.0]
[1735507597557,23.776884,192.29,192.21,20.0]
[1735507604891,23.776884,192.27,192.21,20.0]
[1735507605392,23.776884,192.27,192.17,1.5033]
[1735507606695,28.18666727,192.27,192.17,1.5033]
[1735507606862,33.63789349,192.27,192.17,1.5033]
[1735507610763,28.18666727,192.27,192.17,1.5033]
[1735507610963,23.776884,192.25,192.17,1.5033]
[1735507611683,9.86100949,192.25,192.16,20.0]
[1735507611889,23.776884,192.24,192.16,20.0]
[1735507612966,16.14342198,192.33,192.18,20.0]
[1735507613289,9.86100949,192.3,192.19,1.551]
[1735507613459,23.776884,192.29,192.19,1.551]
[1735507620400,23.776884,192.3,192.14,1.5515]
[1735507620599,2.09305157,192.31,192.14,1.5515]
[1735507620600,23.776884,192.27,192.14,1.5515]
[1735507620779,23.776884,192.25,192.14,1.5515]
[1735507622093,33.63789349,192.25,192.16,20.0]
[1735507626910,35.7054463,192.25,192.16,20.0]
[1735507628012,35.7054463,192.25,192.16,19.8601]
[1735507629506,35.7054463,192.25,192.14,1.5515]
[1735507629707,28.00298469,192.25,192.09,7.9771]
[1735507629912,23.776884,192.21,192.09,7.9771]
[1735507630289,29.27404924,192.21,192.09,7.9771]
[1735507631721,23.776884,192.19,192.09,7.9771]
[1735507631910,23.776884,192.19,192.09,1.5515]
[1735507632304,5.49716524,192.2,192.1,20.0]
[1735507632606,23.776884,192.2,192.1,20.0]
[1735507633297,23.776884,192.2,192.09,21.5515]
[1735507634616,23.776884,192.2,192.09,1.5515]
[1735507635204,29.27404924,192.2,192.09,1.5515]
[1735507636595,29.27404924,192.2,192.09,21.5515]
[1735507638820,31.33920069,192.2,192.09,21.5515]
[1735507639600,31.33920069,192.2,192.09,1.5515]
[1735507641533,7.56231669,192.2,192.12,6.0923]
[1735507641702,2.06515145,192.2,192.13,0.78042555]
[1735507642019,23.776884,192.25,192.13,0.78042555]
[1735507642325,23.776884,192.25,192.12,6.0923]
[1735507642326,11.03224146,192.25,192.12,6.0923]
[1735507643429,23.776884,192.24,192.12,6.0923]
[1735507645428,23.776884,192.24,192.15,20.0]
[1735507645914,11.03224146,192.25,192.15,20.0]
[1735507649043,23.776884,192.24,192.15,20.0]
[1735507649203,33.502908,192.24,192.15,20.0]
[1735507651838,29.27404924,192.24,192.15,20.0]
[1735507654523,29.27404924,192.24,192.15,21.5892]
[1735507657940,34.80912546,192.24,192.15,21.5892]
[1735507664035,2.08026858,192.26,192.17,20.0]
[1735507664232,23.776884,192.28,192.17,20.0]
[1735507664535,7.12936524,192.29,192.17,0.78027642]
[1735507664742,23.776884,192.28,192.17,20.0]
[1735507664933,29.27404924,192.28,192.17,20.0]
[1735507667331,34.80912546,192.28,192.16,20.0]
[1735507667530,23.776884,192.26,192.16,20.0]
[1735507667927,29.31196022,192.26,192.15,1.5892]
[1735507668132,3.78035251,192.29,192.15,1.5892]
[1735507668133,23.776884,192.24,192.15,1.5892]
[1735507668352,26.89575238,192.24,192.15,21.5892]
[1735507668558,32.6856393,192.24,192.15,21.5892]
[1735507669159,32.6856393,192.24,192.15,20.0]
[1735507677269,34.80001493,192.24,192.15,20.0]
[1735507686679,11.02313093,192.24,192.15,20.0]
[1735507687052,11.02313093,192.24,192.16,20.0]
[1735507687254,5.48805471,192.24,192.17,1.5966]
[1735507687671,23.776884,192.23,192.17,21.5966]
[1735507688259,5.48805471,192.24,192.17,21.5966]
[1735507688460,2.11437563,192.24,192.17,21.5966]
[1735507688666,5.53507622,192.28,192.18,20.0]
[1735507688867,23.776884,192.27,192.18,20.0]
[1735507690284,23.776884,192.27,192.19,20.0]
[1735507691681,7.6325451,192.28,192.21,20.0]
[1735507691889,2.09746888,192.28,192.21,20.0]
[1735507692275,23.776884,192.28,192.21,20.0]
[1735507692478,5.48446512,192.29,192.21,20.0]
[1735507694595,23.776884,192.28,192.21,20.0]
[1735507699513,23.776884,192.28,192.19,11.19957662]
[1735507699514,5.48446512,192.29,192.27,20.0]
[1735507699715,55.49727365,192.45,192.31,20.0]
[1735507700011,8.19126227,192.4,192.31,30.41935622]
[1735507700177,23.776884,192.39,192.3,30.41935622]
[1735507700682,23.776884,192.39,192.31,11.19909302]
[1735507700882,10.28356686,192.4,192.31,11.19909302]
[1735507701198,23.776884,192.44,192.31,11.19909302]
[1735507702295,23.776884,192.44,192.32,10.41935622]
[1735507702483,23.776884,192.44,192.35,20.0]
[1735507702797,25.86231853,192.44,192.35,20.0]
[1735507707495,25.86231853,192.44,192.29,10.41935622]
[1735507707974,25.86231853,192.44,192.32,20.0]
[1735507708174,25.86231853,192.44,192.34,20.0]
[1735507710204,25.86231853,192.44,192.32,10.41935622]
[1735507710417,25.86231853,192.44,192.35,20.0]
[1735507710899,25.86231853,192.44,192.31,31.19903717]
[1735507711290,25.86231853,192.44,192.31,20.77968095]
[1735507713905,25.86231853,192.44,192.31,31.19903717]
[1735507714109,25.86231853,192.44,192.35,20.0]
[1735507716310,25.86231853,192.44,192.35,21.5458]
[1735507716807,25.86231853,192.44,192.36,20.0]
[1735507717008,25.86231853,192.44,192.39,20.0]
[1735507717009,2.08543453,192.44,192.39,20.0]
[1735507717206,23.776884,192.49,192.39,20.0]
[1735507717509,6.0603,192.5,192.39,20.0]
[1735507718008,23.776884,192.49,192.39,20.0]
[1735507718212,6.0603,192.5,192.4,20.0]
[1735507719106,23.776884,192.49,192.4,20.0]
[1735507719300,2.10366502,192.5,192.4,10.41935622]
[1735507719504,1.6385,192.52,192.4,10.41935622]
[1735507719890,6.0603,192.55,192.44,20.0]
[1735507720104,23.776884,192.54,192.44,20.0]
[1735507720303,6.0603,192.55,192.44,20.0]
[1735507720792,23.776884,192.54,192.44,20.0]
[1735507721009,23.776884,192.54,192.41,11.96515622]
[1735507721218,23.776884,192.54,192.44,20.0]
[1735507721588,23.776884,192.54,192.45,6.5783]
[1735507722011,2.07166833,192.55,192.45,6.5783]
[1735507722211,4.56455347,192.57,192.45,6.5783]
[1735507724788,23.776884,192.56,192.45,6.5783]
[1735507726717,11.64523034,192.57,192.45,6.5783]
[1735507727218,23.776884,192.56,192.45,6.5783]
[1735507727424,11.64523034,192.57,192.45,6.5783]
[1735507727618,7.08067687,192.57,192.45,6.5783]
[1735507727796,23.776884,192.56,192.44,20.0]
[1735507727995,23.776884,192.56,192.43,20.0]
[1735507730998,27.776884,192.56,192.44,20.0]
[1735507731409,27.776884,192.56,192.45,20.0]
[1735507734430,27.776884,192.56,192.43,31.19856173]
[1735507738231,31.776884,192.56,192.43,31.19856173]
[1735507738931,31.776884,192.56,192.45,20.0]
[1735507739517,31.776884,192.56,192.41,1.5458]
[1735507739812,31.776884,192.56,192.41,11.96515622]
[1735507740041,31.776884,192.56,192.44,20.0]
[1735507741236,31.776884,192.56,192.45,20.0]
[1735507742207,31.776884,192.56,192.42,11.19857531]
[1735507742208,31.776884,192.56,192.44,10.41935622]
[1735507742512,31.776884,192.56,192.45,10.41935622]
[1735507743418,8.0,192.56,192.49,20.0]
[1735507743832,23.776884,192.55,192.49,20.0]
[1735507744915,23.776884,192.55,192.5,20.0]
[1735507746129,23.776884,192.55,192.49,20.0]
[1735507754027,23.776884,192.55,192.46,6.2842]
[1735507754432,23.776884,192.55,192.44,1.6132]
[1735507755037,23.776884,192.55,192.44,21.6132]
[1735507755757,23.776884,192.55,192.45,20.0]
[1735507756074,23.776884,192.55,192.46,20.0]
[1735507756743,26.776884,192.55,192.44,32.81178869]
[1735507756928,26.776884,192.55,192.44,22.39243247]
[1735507757132,26.776884,192.55,192.46,20.0]
[1735507758247,26.776884,192.55,192.45,20.0]
[1735507761553,26.776884,192.55,192.44,1.6132]
[1735507761731,32.924784,192.55,192.44,1.6132]
[1735507762136,32.924784,192.55,192.44,21.6132]
[1735507762746,32.924784,192.55,192.45,20.0]
[1735507763559,32.924784,192.55,192.45,19.9344]
[1735507766853,32.924784,192.55,192.44,21.6132]
[1735507768755,32.924784,192.55,192.45,20.0]
[1735507768756,3.0,192.55,192.45,20.0]
[1735507769443,23.776884,192.54,192.45,20.0]
[1735507771758,23.776884,192.54,192.44,22.39240091]
[1735507773163,23.776884,192.54,192.44,21.6132]
[1735507777069,27.776884,192.54,192.44,21.6132]
[1735507779069,27.776884,192.54,192.41,6.2842]
[1735507781268,23.776884,192.5,192.4,1.5739]
[1735507781478,20.0,192.52,192.4,1.5739]
[1735507781647,20.0,192.52,192.41,20.0]
[1735507781973,23.776884,192.51,192.4,1.5739]
[1735507782678,23.776884,192.51,192.4,21.5739]
[1735507783472,23.776884,192.51,192.41,20.0]
[1735507784771,23.776884,192.51,192.4,1.5739]
[1735507786748,25.9155587,192.51,192.4,1.5739]
[1735507792158,28.9155587,192.51,192.4,1.5739]
[1735507795562,34.24775702,192.51,192.4,1.5739]
[1735507796885,36.24775702,192.51,192.4,1.5739]
[1735507798481,36.24775702,192.51,192.39,20.0]
[1735507799360,20.0,192.48,192.36,8.2241]
[1735507799570,23.776884,192.47,192.36,8.2241]
[1735507801182,23.776884,192.47,192.36,1.5741]
[1735507802581,20.0,192.44,192.36,1.5741]
[1735507802773,23.776884,192.43,192.32,7.7859]
[1735507803585,23.776884,192.43,192.32,1.5024]
[1735507805901,30.113984,192.43,192.32,1.5024]
[1735507806606,31.688784,192.43,192.32,1.5024]
[1735507806997,23.776884,192.39,192.32,1.5024]
[1735507807174,23.776884,192.39,192.28,6.3691]
[1735507807795,23.776884,192.39,192.25,10.41935622]
[1735507808105,23.776884,192.39,192.24,10.41935622]
[1735507808678,23.776884,192.39,192.27,20.0]
[1735507810286,20.0,192.4,192.29,30.41935622]
[1735507810498,5.69844236,192.42,192.31,10.41935622]
[1735507810803,20.0,192.43,192.32,1.5915]
[1735507811104,43.776884,192.42,192.32,1.5915]
[1735507811603,23.776884,192.38,192.32,1.5915]
[1735507814619,23.776884,192.38,192.29,20.0]
[1735507814781,26.776884,192.38,192.29,20.0]
[1735507814990,26.776884,192.38,192.28,1.5915]
[1735507815388,28.90260408,192.38,192.28,1.5915]
[1735507818504,31.90260408,192.38,192.28,2.37139587]
[1735507819113,31.90260408,192.38,192.28,1.5915]
[1735507819987,8.12572008,192.38,192.29,31.19921891]
[1735507820503,8.12572008,192.38,192.3,10.41935622]
[1735507820905,23.776884,192.37,192.29,31.19921891]
[1735507823688,23.776884,192.37,192.3,20.0]
[1735507825047,23.776884,192.37,192.28,1.5915]
[1735507828849,33.90260408,192.38,192.28,1.5915]
[1735507829049,23.776884,192.37,192.29,20.0]
[1735507831254,26.776884,192.37,192.29,20.0]
[1735507835531,26.776884,192.37,192.28,1.5915]
[1735507836251,26.776884,192.37,192.29,3.88035749]
[1735507836454,26.776884,192.37,192.29,7.47740008]
[1735507836853,26.776884,192.37,192.3,3.88035749]
[1735507837441,26.776884,192.37,192.31,3.88035749]
[1735507838065,26.776884,192.37,192.29,23.59767587]
[1735507838269,26.776884,192.37,192.29,3.59767587]
[1735507838460,26.776884,192.37,192.29,20.0]
[1735507838664,26.776884,192.37,192.3,3.88216665]
[1735507839280,26.776884,192.37,192.31,3.88216665]
[1735507839885,26.776884,192.37,192.29,20.0]
[1735507840451,26.776884,192.37,192.3,3.883475]
[1735507840866,26.776884,192.37,192.31,3.883475]
[1735507841490,26.776884,192.37,192.32,3.883475]
[1735507842093,26.776884,192.37,192.29,20.0]
[1735507842568,26.776884,192.37,192.3,3.88674667]
[1735507843291,26.776884,192.37,192.31,3.88674667]
[1735507843884,26.776884,192.37,192.29,20.0]
[1735507845302,26.776884,192.37,192.28,1.5915]
[1735507848302,26.776884,192.37,192.26,0.77993763]
[1735507849403,26.776884,192.37,192.27,20.0]
[1735507849710,32.4918601,192.37,192.27,20.0]
[1735507850701,32.4918601,192.37,192.25,30.41935622]
[1735507850887,32.4918601,192.37,192.25,31.1992974]
[1735507854416,32.4918601,192.37,192.23,9.77885397]
[1735507854417,32.4918601,192.37,192.27,20.0]
[1735507854591,23.776884,192.35,192.26,20.0]
[1735507860889,23.776884,192.35,192.26,19.9605]
[1735507861103,23.776884,192.35,192.26,19.921]
[1735507861411,23.776884,192.35,192.26,19.8815]
[1735507861706,23.776884,192.35,192.24,0.78001147]
[1735507862007,23.776884,192.35,192.23,1.639]
[1735507862505,23.776884,192.36,192.23,1.639]
[1735507862712,13.14664068,192.35,192.23,1.639]
[1735507863586,13.14664068,192.35,192.24,20.0]
[1735507866715,23.776884,192.34,192.24,20.0]
[1735507868913,23.776884,192.34,192.23,1.639]
[1735507869208,23.776884,192.32,192.23,1.639]
[1735507873703,23.776884,192.32,192.19,0.78021479]
[1735507873912,23.776884,192.32,192.2,20.0]
[1735507874406,30.84126248,192.32,192.19,0.78021479]
[1735507874595,23.776884,192.3,192.19,20.0]
[1735507875199,23.776884,192.3,192.19,20.78031106]
[1735507875416,5.77283124,192.31,192.2,10.41935622]
[1735507875606,5.77283124,192.31,192.21,0.78012793]
[1735507876005,7.06437848,192.32,192.24,20.0]
[1735507877014,7.06437848,192.32,192.21,0.78012793]
[1735507877226,7.06437848,192.32,192.2,0.78010118]
[1735507877520,7.06437848,192.32,192.2,11.1994574]
[1735507877719,7.06437848,192.32,192.24,20.0]
[1735507878022,5.0,192.32,192.26,1.614]
[1735507878192,23.776884,192.31,192.27,0.77990044]
[1735507879019,23.776884,192.29,192.27,0.77990044]
[1735507879333,3.0,192.3,192.27,0.77990044]
[1735507880335,23.776884,192.29,192.28,6.0963]
[1735507881805,3.0,192.3,192.28,16.51565622]
[1735507882126,3.0,192.3,192.29,12.8130995]
[1735507882127,1.3334,192.3,192.29,12.8130995]
[1735507882627,28.776884,192.32,192.31,20.0]
[1735507882928,28.776884,192.32,192.31,27.41935622]
[1735507883322,5.0,192.32,192.31,27.41935622]
[1735507883511,5.0,192.32,192.31,36.2442719]
[1735507883826,3.3334,192.32,192.31,36.2442719]
[1735507884422,6.0,192.35,192.31,66.2442719]
[1735507884629,6.0,192.35,192.34,10.41935622]
[1735507884829,6.0,192.35,192.34,11.1987674]
[1735507886348,29.776884,192.35,192.34,11.1987674]
[1735507887861,32.776884,192.35,192.34,11.1987674]
[1735507890423,9.0,192.35,192.34,11.1987674]
[1735507892124,9.0,192.35,192.34,17.4419674]
[1735507892432,9.0,192.35,192.34,28.0031674]
[1735507892632,11.0,192.35,192.34,28.0031674]
[1735507893725,3.0,192.39,192.36,56.2432]
[1735507893925,3.0,192.39,192.37,11.19845531]
[1735507894197,3.0,192.39,192.38,36.2432]
[1735507894471,3.0,192.39,192.38,88.3399811]
[1735507894838,3.0,192.39,192.38,47.44158999]
[1735507895252,3.0,192.39,192.38,89.11901487]
[1735507895444,5.0,192.51,192.41,50.0]
[1735507895646,23.776884,192.5,192.49,20.0]
[1735507896249,5.0,192.51,192.5,20.0]
[1735507896449,5.0,192.51,192.5,20.77891282]
[1735507896650,28.776884,192.51,192.5,20.77891282]
[1735507897152,28.776884,192.51,192.5,20.0]
[1735507897362,23.776884,192.5,192.49,10.41935622]
[1735507897744,5.0,192.51,192.49,10.41935622]
[1735507897945,5.0,192.51,192.5,20.77893586]
[1735507898375,5.0,192.51,192.5,0.77893586]
[1735507899786,5.0,192.51,192.46,11.19826124]
[1735507900074,8.0,192.51,192.5,20.0]
[1735507902078,8.0,192.51,192.48,0.77897471]
[1735507902277,8.0,192.51,192.45,0.77911964]
[1735507902654,8.0,192.51,192.45,20.77911964]
[1735507902655,1.5139,192.5,192.45,20.77911964]
[1735507903360,1.5139,192.5,192.46,20.0]
[1735507904798,1.5139,192.5,192.44,0.77915915]
[1735507904996,23.776884,192.48,192.42,0.77924313]
[1735507905171,23.776884,192.48,192.41,0.77929721]
[1735507905686,23.776884,192.48,192.39,0.77936768]
[1735507905856,23.776884,192.48,192.36,10.41935622]
[1735507906056,23.776884,192.48,192.38,20.0]
[1735507906284,23.776884,192.48,192.39,20.0]
[1735507907382,23.776884,192.46,192.35,0.77944334]
[1735507907762,23.776884,192.46,192.36,20.0]
[1735507908079,23.776884,192.46,192.35,0.77944334]
[1735507908280,23.776884,192.46,192.35,20.77944334]
[1735507908482,23.776884,192.46,192.35,0.77944334]
[1735507908687,23.776884,192.46,192.33,0.77959324]
[1735507908990,23.776884,192.46,192.36,20.0]
[1735507909482,23.776884,192.46,192.37,0.7795855]
[1735507910265,23.776884,192.46,192.4,20.0]
[1735507912689,23.776884,192.46,192.39,20.0]
[1735507913265,23.776884,192.46,192.37,0.77944519]
[1735507913487,26.776884,192.46,192.38,20.0]
[1735507913688,26.776884,192.46,192.39,0.77947568]
[1735507914072,26.776884,192.46,192.4,20.0]
[1735507914292,26.776884,192.46,192.41,0.77936654]
[1735507917804,26.776884,192.46,192.38,0.77937914]
[1735507918009,26.776884,192.46,192.35,0.77947058]
[1735507918198,26.776884,192.46,192.36,20.0]
[1735507918798,26.776884,192.46,192.35,0.77947058]
[1735507919009,23.776884,192.44,192.36,20.0]
[1735507920188,23.776884,192.44,192.34,31.19892622]
[1735507920903,23.776884,192.44,192.36,20.0]
[1735507922606,23.776884,192.44,192.37,0.77953035]
[1735507922995,27.776884,192.44,192.37,0.77953035]
[1735507923404,27.776884,192.44,192.35,0.77952657]
[1735507924001,27.776884,192.44,192.38,20.0]
[1735507924719,27.776884,192.44,192.36,20.0]
[1735507925508,27.776884,192.44,192.35,20.77956067]
[1735507925696,27.776884,192.44,192.36,20.0]
[1735507925897,27.776884,192.44,192.36,20.77957256]
[1735507926398,27.776884,192.44,192.37,20.0]
[1735507926826,27.776884,192.44,192.37,20.77949956]
[1735507926993,30.776884,192.44,192.37,0.77949956]
[1735507927194,7.0,192.44,192.37,0.77949956]
[1735507927498,23.776884,192.43,192.36,20.77945045]
[1735507928303,23.776884,192.43,192.36,0.77945045]
[1735507929223,23.776884,192.43,192.35,20.0]
[1735507929418,23.776884,192.43,192.33,0.77957249]
[1735507929716,23.776884,192.43,192.35,20.0]
[1735507930633,23.776884,192.41,192.33,20.0]
[1735507931030,23.776884,192.39,192.3,20.0]
[1735507932132,23.776884,192.39,192.31,20.77975737]
[1735507932952,23.776884,192.39,192.31,0.77975737]
[1735507933229,23.776884,192.39,192.28,0.77978116]
[1735507934946,23.776884,192.39,192.31,20.0]
[1735507935532,23.776884,192.39,192.28,0.77978116]
[1735507936004,28.776884,192.39,192.28,0.77978116]
[1735507936208,30.84207934,192.39,192.28,0.77978116]
[1735507936933,30.84207934,192.39,192.31,20.0]
[1735507939555,35.84207934,192.39,192.31,20.0]
[1735507942558,35.84207934,192.39,192.28,0.77978116]
[1735507943249,40.84207934,192.39,192.28,0.77978116]
[1735507943450,23.776884,192.37,192.26,0.77980545]
[1735507944131,23.776884,192.37,192.26,20.77980545]
[1735507944335,23.776884,192.35,192.22,0.77995615]
[1735507944550,23.776884,192.35,192.21,8.13274223]
[1735507945060,23.776884,192.35,192.24,20.0]
[1735507945526,23.776884,192.35,192.22,20.0]
[1735507945730,23.776884,192.35,192.2,0.78008761]
[1735507946350,23.776884,192.35,192.22,20.0]
[1735507946735,23.776884,192.33,192.22,20.0]
[1735507947444,23.776884,192.33,192.21,20.0]
[1735507949059,23.776884,192.33,192.19,0.78016073]
[1735507949060,23.776884,192.33,192.23,20.0]
[1735507949263,23.776884,192.33,192.25,20.0]
[1735507949936,23.776884,192.33,192.24,20.0]
[1735507950439,23.776884,192.33,192.22,0.78003611]
[1735507950440,23.776884,192.33,192.25,20.0]
[1735507952465,26.776884,192.33,192.25,20.0]
[1735507954468,28.82352304,192.33,192.25,20.0]
[1735507954655,28.82352304,192.33,192.24,20.0]
[1735507955172,26.776884,192.33,192.28,20.0]
[1735507956272,32.776884,192.33,192.25,0.77999733]
[1735507959170,32.776884,192.33,192.26,20.0]
[1735507959676,32.776884,192.33,192.26,20.77991098]
[1735507962078,37.776884,192.33,192.26,20.77991098]
[1735507962478,37.776884,192.33,192.26,0.77991098]
[1735507962655,37.776884,192.33,192.26,20.0]
[1735507963678,37.776884,192.33,192.25,20.7799578]
[1735507963980,37.776884,192.33,192.22,0.77995912]
[1735507964186,23.776884,192.31,192.19,0.77995912]
[1735507964783,23.776884,192.29,192.17,0.78015137]
[1735507965386,23.776884,192.29,192.18,20.0]
[1735507966376,23.776884,192.29,192.19,0.78021921]
[1735507966582,23.776884,192.29,192.19,20.78021921]
[1735507967266,23.776884,192.29,192.19,0.78021921]
[1735507967581,23.776884,192.29,192.18,20.0]
[1735507967755,23.776884,192.29,192.16,0.78024529]
[1735507967756,23.776884,192.27,192.14,0.78035124]
[1735507967950,23.776884,192.25,192.14,0.78035124]
[1735507968792,23.776884,192.25,192.15,20.0]
[1735507969155,23.776884,192.25,192.15,20.78036567]
[1735507969686,23.776884,192.25,192.17,20.0]
[1735507970092,23.776884,192.25,192.16,20.0]
[1735507970761,23.776884,192.25,192.14,20.0]
[1735507971495,26.776884,192.25,192.15,20.0]
[1735507975165,32.776884,192.25,192.14,20.0]
[1735507975760,32.776884,192.25,192.13,20.0]
[1735507976476,32.776884,192.25,192.12,20.0]
[1735507976897,36.5426944,192.25,192.12,20.0]
[1735507977871,42.4310812,192.25,192.11,20.0]
[1735507979968,42.4310812,192.25,192.1,0.7805344]
[1735507980485,42.4310812,192.25,192.11,20.0]
[1735507981603,42.4310812,192.25,192.12,0.7805329]
[1735507982185,42.4310812,192.25,192.13,20.0]
[1735507982893,42.4310812,192.25,192.09,30.41935622]
[1735507983095,42.4310812,192.25,192.1,0.78052246]
[1735507983775,42.4310812,192.25,192.13,20.0]
[1735507984977,42.4310812,192.25,192.1,0.78052246]
[1735507985181,38.6652708,192.25,192.1,0.78052246]
[1735507985799,1.6212,192.22,192.11,20.0]
[1735507985999,23.776884,192.21,192.11,20.0]
[1735507986512,23.776884,192.21,192.1,20.0]
[1735507987502,23.776884,192.21,192.11,20.0]
[1735507987714,23.776884,192.21,192.11,20.78060739]
[1735507988002,23.776884,192.21,192.12,20.0]
[1735507990795,25.87992137,192.21,192.12,20.0]
[1735507991330,25.87992137,192.21,192.13,20.0]
[1735507991533,25.87992137,192.21,192.13,20.78048936]
[1735507991534,23.776884,192.21,192.13,20.78048936]
[1735507991738,1.6212,192.22,192.13,31.19984558]
[1735507991918,12.74874231,192.24,192.18,20.0]
[1735507991919,6.1961,192.24,192.18,20.0]
[1735507992235,14.0,192.25,192.18,20.0]
[1735507993142,23.776884,192.24,192.18,20.0]
[1735507994438,23.776884,192.24,192.17,20.78025435]
[1735507995327,23.776884,192.24,192.16,20.0]
[1735507995928,23.776884,192.24,192.18,20.0]
[1735507996828,23.776884,192.24,192.18,20.78024378]
[1735507997037,23.776884,192.24,192.2,20.0]
[1735507997212,20.0,192.25,192.21,20.0]
[1735507998902,20.0,192.25,192.22,20.0]
[1735507999134,20.0,192.25,192.23,20.0]
[1735507999347,20.0,192.25,192.24,20.0]
[1735507999540,20.0,192.25,192.17,10.41935622]
[1735507999739,23.776884,192.24,192.18,0.78019155]
[1735508000048,23.776884,192.24,192.2,20.0]
[1735508000559,23.776884,192.24,192.21,20.78015736]
[1735508000849,23.776884,192.24,192.22,20.0]
[1735508004957,23.776884,192.24,192.2,0.78011803]
[1735508007469,26.776884,192.24,192.2,0.78011803]
[1735508010765,26.776884,192.24,192.16,0.78017918]
[1735508011265,26.776884,192.24,192.17,20.0]
[1735508011468,29.776884,192.24,192.17,20.0]
[1735508012968,29.776884,192.24,192.15,0.78032657]
[1735508013279,29.776884,192.24,192.12,8.92157363]
[1735508013970,29.776884,192.24,192.15,20.0]
[1735508014569,29.776884,192.24,192.14,20.0]
[1735508014953,31.86017719,192.24,192.14,20.0]
[1735508019354,23.776884,192.22,192.14,20.0]
[1735508019992,23.776884,192.22,192.15,20.78040634]
[1735508022354,23.776884,192.22,192.15,0.78040634]
[1735508022559,23.776884,192.22,192.14,20.0]
[1735508024195,23.776884,192.22,192.13,20.0]
[1735508024561,23.776884,192.22,192.14,20.0]
[1735508025592,23.776884,192.22,192.13,20.78045481]
[1735508025885,23.776884,192.22,192.14,20.0]
[1735508027122,23.776884,192.22,192.15,20.0]
[1735508027483,26.776884,192.22,192.15,20.0]
[1735508030294,26.776884,192.22,192.14,20.78043396]
[1735508031028,26.776884,192.22,192.15,20.0]
[1735508032201,26.776884,192.22,192.14,20.0]
[1735508032401,26.776884,192.22,192.14,18.0]
[1735508033017,26.776884,192.22,192.11,0.78050879]
[1735508034746,26.776884,192.22,192.13,20.0]
[1735508037318,26.776884,192.22,192.15,20.0]
[1735508040451,3.0,192.22,192.16,0.78040623]
[1735508041254,23.776884,192.21,192.16,0.78040623]
[1735508042798,23.776884,192.21,192.14,28.92157831]
[1735508047087,26.776884,192.21,192.14,28.92157831]
[1735508053226,26.776884,192.21,192.14,39.34093453]
[1735508054008,26.776884,192.21,192.18,20.0]
[1735508054815,26.776884,192.21,192.15,8.14124405]
[1735508055103,26.776884,192.21,192.13,16.28248811]
[1735508055104,26.776884,192.21,192.13,8.14124405]
[1735508056009,26.776884,192.21,192.16,20.0]
[1735508059200,26.776884,192.21,192.17,20.0]
[1735508060102,26.776884,192.21,192.18,20.0]
[1735508060103,3.0,192.21,192.18,20.0]
[1735508060330,3.0,192.21,192.19,0.78031046]
[1735508061094,3.0,192.21,192.19,11.19966668]
[1735508061722,28.776884,192.22,192.21,20.0]
[1735508063333,28.776884,192.22,192.21,22.67288953]
[1735508064025,28.776884,192.22,192.21,2.67288953]
[1735508064832,5.0,192.22,192.21,2.67288953]
[1735508069026,5.0,192.22,192.21,22.67288953]
[1735508070414,5.0,192.22,192.21,2.67288953]
[1735508070736,9.0,192.22,192.21,2.67288953]
[1735508072610,32.776884,192.22,192.21,22.67288953]
[1735508073235,9.0,192.22,192.21,2.67288953]